bitfinex/quotes_ETHUSD_20250422
["timestamp","ask_amount","ask_price","bid_price","bid_amount"]
[1745305965467,6.32246178,1581.7,1581.4,0.7655]
[1745305965640,10.40948938,1581.8,1581.6,0.7655]
[1745305965841,6.3221677,1581.8,1581.6,0.7655]
[1745305966068,12.64438966,1581.8,1581.6,0.7655]
[1745305966497,6.32231143,1581.7,1581.6,0.7655]
[1745305967078,6.32231143,1581.7,1581.6,0.98641621]
[1745305970439,12.64444969,1581.8,1581.6,0.98641621]
[1745305970640,6.32231143,1581.7,1581.6,0.22091621]
[1745305972265,7.12401143,1581.7,1581.6,0.22091621]
[1745305973189,12.64687698,1581.5,1581.3,3.7655]
[1745305973543,6.32351081,1581.4,1581.2,8.94433319]
[1745305974072,12.64680555,1581.5,1581.2,8.94433319]
[1745305974251,6.32369711,1581.4,1581.2,8.94433319]
[1745305975238,12.64752071,1581.4,1581.2,8.94433319]
[1745305975466,12.64748296,1581.4,1581.2,9.41936871]
[1745305975776,6.32369711,1581.4,1581.2,9.41936871]
[1745305976169,6.3239107,1581.3,1581.2,5.79503552]
[1745305976340,6.32431065,1581.2,1581.1,1.0655]
[1745305976752,12.64819735,1581.3,1581.1,1.0655]
[1745305977676,6.32373465,1581.4,1581.1,1.0655]
[1745305977882,6.32373465,1581.4,1581.1,7.39010812]
[1745305978378,6.32373465,1581.4,1581.1,1.54271458]
[1745305978942,12.64758082,1581.4,1581.1,1.54271458]
[1745305979143,6.32404501,1581.3,1581.1,1.54271458]
[1745305979571,12.64752672,1581.4,1581.1,7.86741112]
[1745305979739,6.32392334,1581.3,1581.1,1.54271458]
[1745305980274,12.64752672,1581.4,1581.1,1.54271458]
[1745305980475,6.32275046,1581.6,1581.2,9.94851727]
[1745305980476,6.32331231,1581.5,1581.2,9.94851727]
[1745305980689,6.32331231,1581.5,1581.3,0.8122]
[1745305981979,6.32331231,1581.5,1581.4,0.2223834]
[1745305982758,6.32311097,1581.5,1581.4,0.2223834]
[1745305982955,7.44652581,1581.6,1581.4,0.2223834]
[1745305983289,6.32311097,1581.5,1581.4,0.2223834]
[1745305983652,8.52607465,1581.5,1581.4,0.2223834]
[1745305983953,6.32431065,1581.2,1581.1,0.3]
[1745305984172,6.32431065,1581.2,1581.1,0.50366803]
[1745305988872,12.64831494,1581.3,1581.1,4.12800122]
[1745305989074,6.32431065,1581.2,1581.1,4.12800122]
[1745305989374,12.64829921,1581.3,1581.1,4.12800122]
[1745305989565,6.32431065,1581.2,1581.1,4.12800122]
[1745305990799,12.64829718,1581.3,1581.1,4.12800122]
[1745305991189,12.64836628,1581.3,1581.1,4.12800122]
[1745305991496,6.32411671,1581.3,1581.1,4.12800122]
[1745305991703,6.32431065,1581.2,1581.1,4.12800122]
[1745305997805,6.32411671,1581.3,1581.1,4.12800122]
[1745305998011,6.32431065,1581.2,1581.1,4.12800122]
[1745305998173,6.32411671,1581.3,1581.1,4.12800122]
[1745305998374,6.32364523,1581.4,1581.1,4.12800122]
[1745305998608,6.32364523,1581.4,1581.3,3.62433319]
[1745305998812,8.21737034,1581.4,1581.3,3.62433319]
[1745305998974,8.21737034,1581.4,1581.3,3.83191425]
[1745306007079,8.21737034,1581.4,1581.3,0.20758106]
[1745306007413,8.21737034,1581.4,1581.1,11.9456688]
[1745306007414,8.21737034,1581.4,1581.2,3.62433319]
[1745306007610,8.21737034,1581.4,1581.3,0.20770336]
[1745306010617,4.08732168,1581.8,1581.4,0.7703]
[1745306010821,6.32173924,1581.9,1581.7,3.62433319]
[1745306011320,16.73006005,1582.0,1581.8,0.20635821]
[1745306011532,6.3215121,1581.9,1581.8,0.20635821]
[1745306011888,6.32126307,1582.0,1581.8,0.20635821]
[1745306012108,8.07645842,1582.0,1581.8,0.20635821]
[1745306012299,6.3215121,1581.9,1581.8,0.20635821]
[1745306012495,10.40826282,1582.1,1581.8,1.43980193]
[1745306012721,6.32111375,1582.0,1581.8,0.97665821]
[1745306013524,4.08732168,1582.1,1581.8,0.97665821]
[1745306013724,6.32144259,1582.0,1581.8,0.97665821]
[1745306013890,6.3215121,1581.9,1581.8,0.97665821]
[1745306014086,6.32144259,1582.0,1581.8,0.97665821]
[1745306014918,6.32139378,1582.0,1581.8,0.97665821]
[1745306015125,12.64287492,1582.0,1581.8,0.97665821]
[1745306015827,12.64277912,1582.0,1581.8,0.97665821]
[1745306016330,6.32138534,1582.0,1581.8,0.97665821]
[1745306016625,6.32137268,1582.0,1581.8,1.46207824]
[1745306017326,6.32137268,1582.0,1581.8,1.46207824]
[1745306017746,16.72930037,1582.1,1581.8,1.46207824]
[1745306018247,6.32113511,1582.0,1581.8,1.46207824]
[1745306019022,16.72933837,1582.1,1581.8,1.46207824]
[1745306019236,6.32114693,1582.0,1581.8,1.46207824]
[1745306019895,6.3215121,1581.9,1581.8,1.46207824]
[1745306020130,12.64260156,1582.0,1581.8,1.46207824]
[1745306020343,6.3215121,1581.9,1581.8,1.46207824]
[1745306020833,12.64260156,1582.0,1581.8,1.46207824]
[1745306021127,14.48288727,1582.0,1581.8,1.46207824]
[1745306021635,7.1364121,1581.9,1581.8,0.20635821]
[1745306021995,6.32269881,1581.7,1581.4,12.72783319]
[1745306022308,12.64534311,1581.7,1581.4,12.72783319]
[1745306022511,6.3226443,1581.7,1581.5,0.17691741]
[1745306022714,6.322165,1581.8,1581.6,3.62433319]
[1745306022908,17.54571854,1581.9,1581.6,3.62433319]
[1745306023230,12.34764292,1581.9,1581.7,0.17691741]
[1745306023396,12.34764292,1581.9,1581.6,10.73053069]
[1745306023592,10.40904249,1581.9,1581.6,10.73053069]
[1745306023837,10.40904249,1581.9,1581.7,0.17691741]
[1745306024138,6.32191174,1581.8,1581.7,0.17691741]
[1745306024308,6.32191174,1581.8,1581.6,4.40783319]
[1745306024511,6.32191174,1581.8,1581.7,0.17691741]
[1745306024944,6.32191174,1581.8,1581.6,4.40783319]
[1745306025246,6.32231143,1581.7,1581.5,4.87722558]
[1745306026144,12.6457812,1581.6,1581.4,5.32]
[1745306026444,12.6457812,1581.6,1581.4,8.32]
[1745306026642,6.32271117,1581.6,1581.4,5.32]
[1745306026944,6.32271117,1581.6,1581.4,5.78224019]
[1745306027242,6.32271117,1581.6,1581.5,0.17691741]
[1745306029845,12.64514851,1581.7,1581.5,0.17691741]
[1745306030001,6.32256071,1581.7,1581.5,3.8012506]
[1745306030205,12.6451451,1581.7,1581.5,3.8012506]
[1745306030406,6.32271117,1581.6,1581.5,3.8012506]
[1745306031412,7.58723836,1581.6,1581.5,3.8012506]
[1745306034567,7.58723836,1581.6,1581.5,0.17691741]
[1745306035826,6.32351081,1581.4,1581.3,8.94333319]
[1745306036048,6.32351081,1581.4,1581.3,9.12721162]
[1745306037061,7.10311744,1581.5,1581.3,9.12721162]
[1745306037569,6.32351081,1581.4,1581.3,9.12721162]
[1745306040330,7.66617364,1581.4,1581.3,5.50287843]
[1745306044751,7.66617364,1581.4,1581.3,0.18387843]
[1745306045100,6.32431065,1581.2,1581.1,0.3]
[1745306045271,6.32431065,1581.2,1581.1,3.92433319]
[1745306046588,12.64832397,1581.3,1581.1,3.92433319]
[1745306046958,6.32411815,1581.3,1581.1,3.92433319]
[1745306047261,6.32431065,1581.2,1581.1,4.73163319]
[1745306049293,6.32411815,1581.3,1581.1,4.73163319]
[1745306051291,6.32376809,1581.4,1581.1,4.73163319]
[1745306051597,6.32394753,1581.3,1581.1,4.73163319]
[1745306053202,12.64814388,1581.3,1581.1,4.73163319]
[1745306053403,12.64814314,1581.3,1581.1,4.73163319]
[1745306053590,6.32394753,1581.3,1581.1,4.73163319]
[1745306053793,12.6481627,1581.3,1581.1,4.73163319]
[1745306054510,6.32394753,1581.3,1581.1,4.73163319]
[1745306054868,12.647564,1581.4,1581.1,4.73163319]
[1745306055177,6.32338213,1581.5,1581.3,4.39943319]
[1745306055602,12.64689075,1581.5,1581.3,4.39943319]
[1745306055781,6.32338213,1581.5,1581.3,4.39943319]
[1745306056109,12.64687578,1581.5,1581.3,4.39943319]
[1745306056963,6.32351081,1581.4,1581.3,4.39943319]
[1745306058314,6.32338213,1581.5,1581.3,4.39943319]
[1745306060700,6.32351081,1581.4,1581.3,4.39943319]
[1745306060890,12.64686938,1581.5,1581.3,7.39943319]
[1745306061080,6.32338213,1581.5,1581.3,7.39943319]
[1745306061428,6.32351081,1581.4,1581.3,7.39943319]
[1745306061615,6.32338213,1581.5,1581.3,7.39943319]
[1745306062114,12.64678245,1581.5,1581.3,7.39943319]
[1745306063179,6.32338213,1581.5,1581.3,7.39943319]
[1745306065346,6.32338213,1581.5,1581.4,1.59748112]
[1745306065712,6.32297785,1581.6,1581.4,1.59748112]
[1745306065914,7.4469278,1581.6,1581.5,1.59748112]
[1745306067046,6.32316971,1581.5,1581.4,1.59748112]
[1745306071151,13.76991457,1581.6,1581.4,1.59748112]
[1745306071450,7.44691861,1581.6,1581.5,1.59748112]
[1745306071852,7.44691861,1581.6,1581.5,1.78636817]
[1745306075236,4.08732168,1581.7,1581.5,4.14774929]
[1745306075534,4.08732168,1581.7,1581.6,1.59748112]
[1745306075971,4.08732168,1581.9,1581.6,11.10665996]
[1745306076163,10.40896614,1581.9,1581.8,1.59748112]
[1745306076363,8.07665761,1581.9,1581.8,1.59748112]
[1745306076658,8.07665761,1581.9,1581.8,1.78404687]
[1745306076850,6.32164446,1581.9,1581.8,1.78404687]
[1745306080954,6.32164446,1581.9,1581.8,0.18656575]
[1745306081475,7.12344446,1581.9,1581.8,0.18656575]
[1745306086881,6.32164446,1581.9,1581.8,1.78404687]
[1745306089596,6.32164446,1581.9,1581.8,0.18656575]
[1745306093083,8.21806767,1581.9,1581.8,1.78404687]
[1745306100445,6.32164446,1581.9,1581.8,1.78404687]
[1745306114386,6.32164446,1581.9,1581.8,2.56314687]
[1745306119809,6.32164446,1581.9,1581.8,1.78404687]
[1745306134139,6.32164446,1581.9,1581.8,2.58874687]
[1745306134936,0.8052,1582.3,1581.8,3.38152799]
[1745306135096,6.32014127,1582.3,1582.2,1.59748112]
[1745306135417,6.31972204,1582.4,1582.2,1.77574176]
[1745306135623,6.31972204,1582.4,1582.3,1.59748112]
[1745306135926,6.31972204,1582.4,1582.3,1.77342186]
[1745306143037,6.32071297,1582.1,1582.0,1.59748112]
[1745306143345,6.32111251,1582.0,1581.9,2.41178112]
[1745306143557,6.32171618,1581.9,1581.8,6.91148112]
[1745306153754,6.32171618,1581.9,1581.8,1.59748112]
[1745306158159,6.32191174,1581.8,1581.7,1.59748112]
[1745306158359,6.32191174,1581.8,1581.7,1.94997707]
[1745306158659,7.11931618,1581.9,1581.7,1.94997707]
[1745306158660,6.32171618,1581.9,1581.7,1.94997707]
[1745306158867,6.32171618,1581.9,1581.8,1.59748112]
[1745306159445,6.32171618,1581.9,1581.8,1.94997707]
[1745306163680,6.32132185,1582.0,1581.8,2.73397707]
[1745306163866,6.32132185,1582.0,1581.9,1.59748112]
[1745306164448,6.32132185,1582.0,1581.9,1.94997707]
[1745306167672,8.38313978,1582.0,1581.9,0.35249595]
[1745306173046,6.32191174,1581.8,1581.7,9.91148112]
[1745306182048,6.32191174,1581.8,1581.7,4.59748112]
[1745306183384,6.32191174,1581.8,1581.7,4.77391222]
[1745306186988,6.32191174,1581.8,1581.7,0.1764311]
[1745306187295,6.3239107,1581.3,1581.2,5.312]
[1745306187455,6.32431065,1581.2,1581.1,22.73748112]
[1745306191391,12.64810467,1581.3,1581.1,22.73748112]
[1745306191597,6.3239107,1581.3,1581.2,1.59748112]
[1745306192599,6.32375342,1581.4,1581.2,2.43068112]
[1745306192760,6.32375342,1581.4,1581.3,1.59748112]
[1745306194790,4.08732168,1581.5,1581.4,0.8332]
[1745306194959,4.08732168,1581.5,1581.4,5.43068112]
[1745306195157,4.08732168,1581.5,1581.4,10.74368112]
[1745306196366,6.3224643,1581.7,1581.4,16.23373993]
[1745306196566,6.3224643,1581.7,1581.6,1.59748112]
[1745306196980,6.32271117,1581.6,1581.5,3.8332]
[1745306197180,12.64507509,1581.7,1581.5,5.43068112]
[1745306197397,6.3224643,1581.7,1581.5,7.46662166]
[1745306198087,12.64509271,1581.7,1581.5,7.46662166]
[1745306198492,6.3224643,1581.7,1581.5,7.46662166]
[1745306198799,12.64515815,1581.7,1581.5,7.46662166]
[1745306199004,6.3224643,1581.7,1581.5,7.46662166]
[1745306199301,12.64517016,1581.7,1581.5,7.46662166]
[1745306199485,12.64515052,1581.7,1581.5,7.46662166]
[1745306199691,6.32271117,1581.6,1581.5,7.46662166]
[1745306200111,6.32271117,1581.6,1581.5,7.94827216]
[1745306203190,6.3224643,1581.7,1581.5,7.94827216]
[1745306205122,6.32217378,1581.8,1581.5,14.33444906]
[1745306205413,6.32217378,1581.8,1581.7,3.63342166]
[1745306206211,12.64346971,1581.9,1581.7,4.40922166]
[1745306206384,6.3216656,1581.9,1581.7,4.40922166]
[1745306206892,12.64346435,1581.9,1581.7,4.40922166]
[1745306207187,6.32191174,1581.8,1581.7,4.40922166]
[1745306207587,12.64352096,1581.9,1581.7,4.40922166]
[1745306207789,10.40818806,1582.1,1581.8,3.0]
[1745306208093,6.32111251,1582.0,1581.9,3.63342166]
[1745306211116,12.6412008,1582.2,1581.9,4.39942166]
[1745306211334,6.32057769,1582.2,1582.1,3.63342166]
[1745306212589,6.32071297,1582.1,1582.0,6.63342166]
[1745306212984,6.32018265,1582.3,1582.0,6.63342166]
[1745306213184,6.32032436,1582.2,1582.0,6.63342166]
[1745306213400,12.64099803,1582.2,1582.0,6.63342166]
[1745306213890,12.64027533,1582.3,1582.0,6.63342166]
[1745306214090,6.32005507,1582.3,1582.2,3.63342166]
[1745306214323,6.31972008,1582.4,1582.2,3.63342166]
[1745306214715,12.63961553,1582.4,1582.2,3.63342166]
[1745306214915,14.39501925,1582.4,1582.2,3.63342166]
[1745306215415,6.31991404,1582.3,1582.2,3.63342166]
[1745306216988,6.3195432,1582.4,1582.2,3.63342166]
[1745306217531,6.3195432,1582.4,1582.2,6.63342166]
[1745306218387,6.31991404,1582.3,1582.2,6.63342166]
[1745306219125,6.31991404,1582.3,1582.2,11.94342166]
[1745306219346,0.8271,1582.7,1582.2,12.75022166]
[1745306219560,6.31935096,1582.5,1582.2,12.75022166]
[1745306219707,12.63876379,1582.5,1582.2,12.75022166]
[1745306220336,6.31991404,1582.3,1582.2,11.94342166]
[1745306221112,6.31991404,1582.3,1582.2,8.31]
[1745306221418,6.32071297,1582.1,1582.0,3.63342166]
[1745306221623,6.32111251,1582.0,1581.9,8.309]
[1745306222230,6.32071297,1582.1,1582.0,3.0]
[1745306223635,7.584842,1582.1,1582.0,3.0]
[1745306224931,7.584842,1582.1,1582.0,6.63342166]
[1745306224932,6.32071297,1582.1,1582.0,6.63342166]
[1745306225734,6.32051951,1582.2,1582.0,6.63342166]
[1745306226035,6.32071297,1582.1,1582.0,6.63342166]
[1745306233660,6.32051951,1582.2,1582.0,6.63342166]
[1745306233950,6.32051951,1582.2,1582.0,7.42152166]
[1745306234855,12.64112205,1582.2,1582.0,7.42152166]
[1745306235562,6.32051951,1582.2,1582.0,7.42152166]
[1745306236057,12.64113734,1582.2,1582.0,7.42152166]
[1745306236556,6.32071297,1582.1,1582.0,7.42152166]
[1745306236959,6.32051951,1582.2,1582.0,7.42152166]
[1745306237135,6.32018233,1582.3,1582.0,13.74262765]
[1745306237335,6.32018233,1582.3,1582.2,3.63342166]
[1745306241163,6.32071297,1582.1,1582.0,6.63342166]
[1745306241592,6.32071297,1582.1,1582.0,11.94242166]
[1745306242456,6.32071297,1582.1,1582.0,6.63342166]
[1745306242652,6.32071297,1582.1,1582.0,11.94242166]
[1745306243168,12.64116894,1582.2,1582.0,11.94242166]
[1745306243770,6.32057893,1582.2,1582.0,11.94242166]
[1745306243970,6.31991404,1582.3,1582.0,11.94242166]
[1745306244147,12.64014843,1582.3,1582.1,0.7881]
[1745306245877,6.32031348,1582.2,1582.1,0.7881]
[1745306246252,12.64090052,1582.2,1582.0,12.73392166]
[1745306246574,6.32016952,1582.3,1582.0,12.73392166]
[1745306247760,6.32035142,1582.2,1582.0,12.73392166]
[1745306248767,12.64034084,1582.3,1582.0,12.73392166]
[1745306249075,12.64034084,1582.3,1582.0,19.05501501]
[1745306249279,6.32037704,1582.2,1582.0,12.73392166]
[1745306249479,6.32016952,1582.3,1582.0,12.73392166]
[1745306249643,6.32016952,1582.3,1582.2,3.63342166]
[1745306250484,6.32016952,1582.3,1582.2,4.42492166]
[1745306251672,6.32016952,1582.3,1582.2,3.63342166]
[1745306252356,6.31972474,1582.4,1582.2,3.63342166]
[1745306253170,12.63949283,1582.4,1582.2,3.63342166]
[1745306253370,12.63949283,1582.4,1582.2,6.63342166]
[1745306253371,6.31991404,1582.3,1582.2,6.63342166]
[1745306253783,6.31991404,1582.3,1582.2,11.94042166]
[1745306253985,12.63953474,1582.4,1582.2,11.94042166]
[1745306254504,14.4164884,1584.9,1582.4,6.31936623]
[1745306254505,0.793,1582.8,1582.4,6.31936623]
[1745306254797,6.3183168,1582.7,1582.6,3.63342166]
[1745306255091,6.3183168,1582.7,1582.6,9.40412878]
[1745306255649,13.42931285,1582.8,1582.6,9.40412878]
[1745306255850,7.11111928,1582.8,1582.6,9.40412878]
[1745306256050,6.31811928,1582.8,1582.7,3.0]
[1745306256279,6.31777091,1582.9,1582.7,3.0]
[1745306256443,6.31717729,1583.0,1582.8,3.63342166]
[1745306256880,12.63459374,1583.0,1582.8,3.63342166]
[1745306257092,12.63466142,1583.0,1582.8,3.63342166]
[1745306257253,6.31717729,1583.0,1582.8,3.63342166]
[1745306257457,6.31751847,1582.9,1582.8,6.63342166]
[1745306257775,6.31751847,1582.9,1582.8,3.0]
[1745306264297,6.31717729,1583.0,1582.8,3.0]
[1745306264519,12.63464889,1583.0,1582.8,3.0]
[1745306265080,6.31751847,1582.9,1582.8,3.0]
[1745306265639,6.31717729,1583.0,1582.8,3.0]
[1745306265800,17.51426005,1583.1,1582.8,6.63342166]
[1745306266001,6.31716792,1583.0,1582.8,6.63342166]
[1745306266203,12.63454843,1583.0,1582.8,6.63342166]
[1745306266519,6.31751847,1582.9,1582.8,6.63342166]
[1745306267685,12.63457124,1583.0,1582.8,6.63342166]
[1745306267912,6.31716792,1583.0,1582.8,6.63342166]
[1745306268620,6.31751847,1582.9,1582.8,6.63342166]
[1745306269404,6.31687365,1583.1,1582.8,13.71835654]
[1745306269609,6.31648397,1583.2,1583.1,3.0]
[1745306270314,6.31612885,1583.3,1583.1,3.0]
[1745306270483,6.31632137,1583.2,1583.1,3.0]
[1745306277007,13.34161817,1583.3,1583.1,3.0]
[1745306277224,6.31632137,1583.2,1583.1,3.0]
[1745306277737,6.31612885,1583.3,1583.1,3.0]
[1745306280845,6.31576208,1583.4,1583.2,3.63342166]
[1745306281342,6.31536012,1583.5,1583.2,4.41162166]
[1745306281542,7.11497033,1583.6,1583.3,3.0]
[1745306281746,11.20178962,1583.7,1583.4,9.71462166]
[1745306281921,10.40178962,1583.7,1583.4,9.71462166]
[1745306282508,10.40178962,1583.7,1583.4,16.03011639]
[1745306282936,10.40178962,1583.7,1583.4,9.71462166]
[1745306283349,6.31419066,1583.8,1583.4,16.02997261]
[1745306283653,6.32370525,1583.9,1583.6,3.63342166]
[1745306283852,0.01,1583.9,1583.6,4.41162166]
[1745306284145,0.01,1583.9,1583.8,3.63342166]
[1745306284647,6.32352989,1583.9,1583.8,3.63342166]
[1745306288727,6.32352989,1583.9,1583.8,4.09669882]
[1745306292063,0.01,1583.9,1583.8,9.39869882]
[1745306292738,6.32352989,1583.9,1583.8,9.39869882]
[1745306294776,0.01,1583.9,1583.8,9.39869882]
[1745306295971,0.01,1583.9,1583.8,10.22439882]
[1745306297904,6.32352989,1583.9,1583.8,5.76527716]
[1745306299151,6.17352989,1583.9,1583.8,5.76527716]
[1745306301872,6.17352989,1583.9,1583.8,5.302]
[1745306304105,6.17352989,1583.9,1583.5,3.0]
[1745306304106,6.31472594,1583.6,1583.5,3.63342166]
[1745306304264,6.31472594,1583.6,1583.5,8.93442166]
[1745306304995,6.31472594,1583.6,1583.5,11.93442166]
[1745306305304,6.31472594,1583.6,1583.5,5.301]
[1745306305513,7.07192594,1583.6,1583.5,5.301]
[1745306305684,6.92192594,1583.6,1583.5,5.301]
[1745306305865,6.31512472,1583.5,1583.4,3.0]
[1745306308307,6.16472594,1583.6,1583.4,3.7868]
[1745306308869,6.31512472,1583.5,1583.4,3.0]
[1745306309493,12.47975061,1583.6,1583.4,3.0]
[1745306309701,12.47975061,1583.6,1583.5,3.63342166]
[1745306309702,6.16472594,1583.6,1583.5,3.63342166]
[1745306310011,12.62908398,1583.7,1583.5,3.63342166]
[1745306310375,6.31472594,1583.6,1583.5,3.63342166]
[1745306311591,6.31512472,1583.5,1583.4,3.0]
[1745306314785,12.63059027,1583.5,1583.3,10.18515868]
[1745306315211,6.31552355,1583.4,1583.3,10.18515868]
[1745306315609,6.31552355,1583.4,1583.3,9.39835868]
[1745306316206,6.31512472,1583.5,1583.3,9.39835868]
[1745306316583,12.63053895,1583.5,1583.3,9.39835868]
[1745306317515,6.31512472,1583.5,1583.3,10.19445868]
[1745306318512,6.31512472,1583.5,1583.3,8.93342166]
[1745306318893,12.63056635,1583.5,1583.3,8.93342166]
[1745306319418,12.63058194,1583.5,1583.3,8.93342166]
[1745306319590,6.31552355,1583.4,1583.3,8.93342166]
[1745306320116,12.63063585,1583.5,1583.3,8.93342166]
[1745306320317,6.31552355,1583.4,1583.3,5.3]
[1745306330531,6.31552355,1583.4,1583.2,4.10267139]
[1745306330532,7.14242244,1583.3,1583.2,3.63342166]
[1745306330829,6.31592244,1583.3,1583.2,8.93342166]
[1745306334412,6.31699702,1583.1,1582.9,25.19872166]
[1745306334628,6.31699702,1583.1,1583.0,3.63342166]
[1745306334813,6.31699702,1583.1,1583.0,8.93342166]
[1745306343070,6.31699702,1583.1,1583.0,9.4053692]
[1745306343289,6.31615249,1583.3,1583.1,0.7503]
[1745306343439,12.63143065,1583.4,1583.2,3.63342166]
[1745306343632,6.31561934,1583.4,1583.2,3.63342166]
[1745306343831,12.63140857,1583.4,1583.2,3.63342166]
[1745306344064,6.31592244,1583.3,1583.2,3.63342166]
[1745306344261,6.31561934,1583.4,1583.2,3.63342166]
[1745306344759,12.63143995,1583.4,1583.2,3.63342166]
[1745306347267,6.31592244,1583.3,1583.2,3.63342166]
[1745306348035,6.31561934,1583.4,1583.2,3.63342166]
[1745306348239,12.631497,1583.4,1583.2,3.63342166]
[1745306348575,6.31592244,1583.3,1583.2,3.63342166]
[1745306348869,6.31592244,1583.3,1583.2,8.93342166]
[1745306349065,6.31592244,1583.3,1583.2,5.3]
[1745306349264,8.97804958,1583.3,1583.2,5.3]
[1745306351533,7.08332244,1583.3,1583.2,5.3]
[1745306351857,6.31592244,1583.3,1583.2,5.3]
[1745306352249,6.31561934,1583.4,1583.2,8.93342166]
[1745306353271,12.63148647,1583.4,1583.2,8.93342166]
[1745306353574,6.31561934,1583.4,1583.2,8.93342166]
[1745306356580,6.31496089,1583.6,1583.3,0.7754]
[1745306356758,12.6299997,1583.6,1583.4,3.63342166]
[1745306357282,6.31496089,1583.6,1583.4,3.63342166]
[1745306357449,6.31448677,1583.7,1583.4,10.01196859]
[1745306357650,6.31448677,1583.7,1583.5,0.7754]
[1745306357858,12.6283958,1583.8,1583.5,0.7754]
[1745306358062,6.31418145,1583.8,1583.6,5.3]
[1745306358260,0.7674,1583.9,1583.6,8.93342166]
[1745306358553,6.31395031,1583.8,1583.6,8.93342166]
[1745306360181,6.3143272,1583.7,1583.6,8.93342166]
[1745306362487,6.3143272,1583.7,1583.6,5.3]
[1745306364991,6.31395031,1583.8,1583.6,5.3]
[1745306365165,6.3143272,1583.7,1583.6,5.3]
[1745306365982,6.31395031,1583.8,1583.6,5.3]
[1745306366287,12.6281522,1583.8,1583.6,5.3]
[1745306366989,6.3143272,1583.7,1583.6,5.3]
[1745306367885,6.31395031,1583.8,1583.6,6.0765]
[1745306367886,12.6281858,1583.8,1583.6,6.0765]
[1745306368062,6.31395031,1583.8,1583.6,9.70992166]
[1745306369890,12.62817555,1583.8,1583.6,9.70992166]
[1745306371191,6.31395031,1583.8,1583.6,9.70992166]
[1745306371994,6.31378613,1583.9,1583.6,9.70992166]
[1745306372183,6.31398376,1583.8,1583.6,9.70992166]
[1745306373790,12.62761858,1583.9,1583.6,9.70992166]
[1745306373996,6.31397449,1583.8,1583.6,9.70992166]
[1745306374779,6.31378613,1583.9,1583.6,9.70992166]
[1745306375093,6.31397024,1583.8,1583.6,9.70992166]
[1745306376359,12.62771152,1583.9,1583.6,9.70992166]
[1745306376696,6.31378613,1583.9,1583.6,9.70992166]
[1745306377012,6.31393669,1583.8,1583.6,9.70992166]
[1745306377503,6.31335326,1584.0,1583.6,9.70992166]
[1745306377678,6.31335326,1584.0,1583.8,4.40992166]
[1745306377880,12.62676927,1584.0,1583.8,4.40992166]
[1745306378190,6.31335326,1584.0,1583.8,4.40992166]
[1745306378694,6.61207332,1584.1,1583.8,10.72374942]
[1745306380107,6.61207332,1584.1,1583.9,0.7982]
[1745306380319,6.61207332,1584.1,1584.0,5.297]
[1745306380832,0.2991839,1584.1,1584.0,5.297]
[1745306381317,0.2991839,1584.1,1584.0,8.93042166]
[1745306382708,0.2991839,1584.1,1584.0,9.41117511]
[1745306385078,0.2991839,1584.1,1584.0,10.20937511]
[1745306388003,0.2991839,1584.1,1584.0,10.27249841]
[1745306389320,0.2991839,1584.1,1584.0,10.20937511]
[1745306390782,0.2991839,1584.1,1584.0,16.52250642]
[1745306391018,0.2991839,1584.1,1584.0,17.07250642]
[1745306391388,0.2991839,1584.1,1584.0,16.62245906]
[1745306391923,0.2991839,1584.1,1584.0,15.03077191]
[1745306392921,0.2991839,1584.1,1584.0,16.62245906]
[1745306393100,0.2991839,1584.1,1584.0,8.1676406]
[1745306393419,0.2991839,1584.1,1584.0,10.19745029]
[1745306393588,0.2991839,1584.1,1584.0,4.90045029]
[1745306393790,0.2991839,1584.1,1584.0,10.19645029]
[1745306393984,0.2991839,1584.1,1584.0,16.57270369]
[1745306394189,0.2991839,1584.1,1584.0,16.5095816]
[1745306396422,0.2991839,1584.1,1584.0,17.0595816]
[1745306400025,0.2991839,1584.1,1584.0,4.90045029]
[1745306400191,0.2991839,1584.1,1584.0,10.19645029]
[1745306401092,0.2991839,1584.1,1584.0,16.5095816]
[1745306402915,0.2991839,1584.1,1584.0,17.0595816]
[1745306414823,0.2991839,1584.1,1584.0,20.0595816]
[1745306415256,0.2991839,1584.1,1584.0,23.68107844]
[1745306415547,0.2991839,1584.1,1584.0,65.56135544]
[1745306415750,0.1,1584.4,1584.3,7.65893587]
[1745306416048,0.1,1584.4,1584.3,11.28043271]
[1745306417658,0.1,1584.4,1584.3,16.57443271]
[1745306418152,6.41153749,1584.4,1584.3,8.91549684]
[1745306418385,0.1,1584.4,1584.3,8.91549684]
[1745306422527,6.41153749,1584.4,1584.3,8.91549684]
[1745306422727,0.1,1584.4,1584.3,8.91549684]
[1745306423041,0.1,1584.4,1584.2,5.294]
[1745306423042,7.12328281,1584.3,1584.2,5.294]
[1745306423447,0.8112,1584.3,1584.2,5.294]
[1745306425026,6.41153749,1584.4,1584.2,5.294]
[1745306425230,7.19563749,1584.4,1584.2,5.294]
[1745306425900,6.31193587,1584.3,1584.2,5.294]
[1745306427583,13.50743603,1584.4,1584.2,5.294]
[1745306427877,6.31193587,1584.3,1584.2,5.294]
[1745306428969,7.09603587,1584.3,1584.2,5.294]
[1745306431674,7.09603587,1584.3,1584.2,5.55772565]
[1745306433507,6.41153749,1584.4,1584.2,5.55772565]
[1745306433671,7.19563749,1584.4,1584.2,5.55772565]
[1745306436276,0.1,1584.4,1584.3,3.62149684]
[1745306436775,0.1,1584.4,1584.3,3.85574831]
[1745306437682,0.1,1584.4,1584.3,10.16768418]
[1745306438796,0.1,1584.4,1584.3,10.71768418]
[1745306442762,0.1,1584.4,1584.3,13.71768418]
[1745306442985,0.1,1584.4,1584.3,14.49968418]
[1745306444964,0.1,1584.4,1584.3,6.85574831]
[1745306447083,0.1,1584.4,1584.3,13.16768418]
[1745306448291,0.1,1584.4,1584.3,14.49968418]
[1745306451391,0.1,1584.4,1584.3,12.46933344]
[1745306460310,0.1,1584.4,1584.3,4.82539757]
[1745306460472,0.1,1584.4,1584.3,11.13733344]
[1745306461209,0.1,1584.4,1584.3,4.82539757]
[1745306462202,0.1,1584.4,1584.3,11.68733344]
[1745306463208,0.1,1584.4,1584.3,5.37539757]
[1745306463411,0.1,1584.4,1584.3,11.68733344]
[1745306463912,0.1,1584.4,1584.3,12.52053344]
[1745306465812,0.1,1584.4,1584.3,9.52053344]
[1745306467189,0.1,1584.4,1584.3,12.52053344]
[1745306471436,0.1,1584.4,1584.3,11.68733344]
[1745306473812,0.1,1584.4,1584.3,16.97833344]
[1745306478940,0.1,1584.4,1584.3,10.66639757]
[1745306481458,0.1,1584.4,1584.3,16.97833344]
[1745306481660,0.1,1584.4,1584.3,10.66639757]
[1745306481823,0.1,1584.4,1584.3,16.97833344]
[1745306482973,0.1,1584.4,1584.3,10.66639757]
[1745306483970,0.1,1584.4,1584.3,8.52525147]
[1745306484271,0.1,1584.4,1584.3,10.11639757]
[1745306484473,7.23463749,1584.4,1584.3,5.52525147]